Workbook

Sheet répartition
A1: force gravité | B1: =M21*SIN(ATAN(J12))*(J10+J3) -> 0 | C1: =(B1*$K$9)/(1-$M$20)/$B$4 -> 0 | E1: vitesse (km/h) | F1: =3.6*F2 -> 31.12115356 | G1: =((M21*COS(ATAN(J12))*(J10+J3)*J23+M21*SIN(ATAN(J12))*(J10+J3)+0.5*J14*J22*(F2+M16)^2)*F2)/(1-M20)-J6+J5-((J8)*F2^3)/((45/3.6)^3) -> 158.9649719 | I1: paramètres vélo
A2: force roulement | B2: =M21*COS(ATAN(J12))*(J10+J3)*J23 -> 3.5718355 | C2: =(B2*$K$9)/(1-$M$20)/$B$4 -> 0.1962976877 | E2: vitesse (m/s) | F2: 8.644764878 | J2: Aeroad CF SLX | K2: Ultimate CF SLX | L2: Rose Six
A3: force aéro | B3: =0.5*J14*J22*(K9+M16)^2 -> 14.62417863 | C3: =(B3*$K$9)/(1-$M$20)/$B$4 -> 0.8037023123 | I3: poids vélo et matériel | J3: 9.85 | K3: 9 | L3: 9.4
A4: puissance nécessaire | B4: =((B2+B1+B3)*K9)/(1-M20) -> 156.3231455 | I4: aero à 45km/h(W) | J4: 204 | K4: 235 | L4: 225
I5: pénalité position(W) | J5: 0 | K5: 3 | L5: 0
I6: gain aéro à vitesse demandée (W) | J6: =((K4-J4)*K9^3)/((45/3.6)^3) -> 9.185185185 | K6: 0 | L6: =((K4-L4)*K9^3)/(45/3.6)^3 -> 2.962962963
I7: taille de cadre | J7: XS | K7: M | L7: M
B8: Aeroad | C8: Ultimate | D8: Rose Six | I8: gain taille cadre aero (W) | J8: 10 | K8: 0 | L8: 0
A9: puissance (W) selon paramètres | B9: =((M21*COS(ATAN(J12))*(J10+J3)*J23+M21*SIN(ATAN(J12))*(J10+J3)+0.5*J14*J22*(K9+M16)^2)*K9)/(1-M20)-J6+J5-((J8)*K9^3)/((45/3.6)^3) -> 144.1749973 | C9: =((M21*COS(ATAN(J12))*(J10+K3)*J23+M21*SIN(ATAN(J12))*(J10+K3)+0.5*J14*J22*(K9+M16)^2)*K9)/(1-M20)+K5-((K8)*K9^3)/((45/3.6)^3)-K6 -> 158.9651085 | D9: =((M21*COS(ATAN(J12))*(J11+L3)*J23+M21*SIN(ATAN(J12))*(J11+L3)+0.5*J14*J22*(K9+M16)^2)*K9)/(1-M20)-L6+L5-((L8)*K9^3)/((45/3.6)^3) -> 157.8040528 | I9: vitesse (km/h) | J9: 30 | K9: =J9/3.6 -> 8.333333333 | L9: CdA exemple
A10: gain vitesse (km/h) | B10: =F1-J9 -> 1.12115356 | I10: masse cycliste (kg) - CANYON | J10: 63 | L10: Barres | M10: 0.408
A11: gain temps (min) | B11: =((J15/J9)-(J15/F1))*60 -> 7.205089992 | I11: masse cycliste 2 (kg) - ROSE | J11: 74 | L11: Cocottes | M11: 0.324
I12: pourcentage pente | J12: 0 | L12: Ceintre | M12: 0.307
I13: altitude (m) | J13: 500 | L13: Aerobars | M13: 0.2914
I14: CdA | J14: 0.32
E15: watt/kg | F15: cycliste 1 | G15: cycliste 2 | I15: distance segment (km) | J15: 100 | L15: vitesse vent (km/h) | M15: 2
E16: Aeroad | F16: =(((M21*COS(ATAN(J12))*(J10+J3)*J23+M21*SIN(ATAN(J12))*(J10+J3)+0.5*J14*J22*(K9+M16)^2)*K9)/(1-M20)-J6+J5)/J10 -> 2.335523179 | G16: =(((M21*COS(ATAN(J12))*(J11+J3)*J23+M21*SIN(ATAN(J12))*(J11+J3)+0.5*J14*J22*(K9+M16)^2)*K9)/(1-M20)-J6+J5)/J11 -> 2.050964588 | L16: vitesse vent (m/s) | M16: =M15/3.6 -> 0.5555555556
E17: Rose | F17: =(((M21*COS(ATAN(J12))*(J10+L3)*J23+M21*SIN(ATAN(J12))*(J10+L3)+0.5*J14*J22*(K9+M16)^2)*K9)/(1-M20)-L6+L5)/J10 -> 2.431279898 | G17: =(((M21*COS(ATAN(J12))*(J11+L3)*J23+M21*SIN(ATAN(J12))*(J11+L3)+0.5*J14*J22*(K9+M16)^2)*K9)/(1-M20)-L6+L5)/J11 -> 2.1324872
E18: Ultimate | F18: =(((M21*COS(ATAN(J12))*(J10+K3)*J23+M21*SIN(ATAN(J12))*(J10+K3)+0.5*J14*J22*(K9+M16)^2)*K9)/(1-M20)-K6+K5)/J10 -> 2.523255691 | G18: =(((M21*COS(ATAN(J12))*(J11+K3)*J23+M21*SIN(ATAN(J12))*(J11+K3)+0.5*J14*J22*(K9+M16)^2)*K9)/(1-M20)-K6+K5)/J11 -> 2.210790916 | I18: densité air niv. mer(kg/m²) | J18: 1.225
I19: R constante gaz parfait | J19: 8.31445
I20: température (C°) | J20: 25 | K20: =J20+273.15 -> 298.15 | L20: perte rendement | M20: 0.03
I21: masse molaire air (kg/mol) | J21: 0.0289644 | L21: constante g (m/s²) | M21: 9.806
I22: rho air | J22: =J18*EXP((-M21*J21*J13)/(J19*K20)) -> 1.15679538
I23: coeff résis roulement | J23: 0.005
I24: coeff trainé | J24: 0.65 | K24: pas pris en compte
I25: aire frontale (m²) | J25: 0.5

Sheet W ou WpKg constant
A1: pente | M1: vitesse | Y1: paramètres vélo
A2: pente | B2: vitesse (km/h) | C2: Aeroad | D2: Aeroad W/kg | E2: Rose | F2: Rose W/kg | G2: Ultimate | H2: Ultimate W/kg | I2: différence Ultimate | J2: différence Ultimate W/kg | K2: différence Rose | L2: différence Rose W/kg | M2: vitesse (km/h) | N2: Aeroad | O2: Aeroad W/kg | P2: Rose | Q2: Rose W/kg | R2: Ultimate | S2: Ultimate W/kg | T2: différence Ultimate | U2: différence Ultimate W/kg | V2: différence Rose | W2: différence Rose W/kg | Z2: Aeroad CF SLX | AA2: Ultimate CF SLX | AB2: Rose Six
A3: 0 | B3: 35.14394288 | C3: =(($AC$21*COS(ATAN(A3))*($Z$9+$Z$3+$Z$6)*$Z$23+$AC$21*SIN(ATAN(A3))*($Z$9+$Z$3+$Z$6)+0.5*$Z$13*$Z$22*((B3/3.6)+$AC$16)^2)*(B3/3.6))/(1-$AC$20)-((($AA$4-$Z$4)*(B3/3.6)^3)/(45/3.6)^3)+$Z$5-(($Z$8)*(B3/3.6)^3)/((45/3.6)^3) -> 200.0000435 | D3: =C3/$Z$9 -> 3.174603866 | E3: =(($AC$21*COS(ATAN(A3))*($Z$10+$AB$3+$AB$6)*$Z$23+$AC$21*SIN(ATAN(A3))*($Z$10+$AB$3+$AB$6)+0.5*$Z$13*$Z$22*((B3/3.6)+$AC$16)^2)*(B3/3.6))/(1-$AC$20)-((($AA$4-$AB$4)*(B3/3.6)^3)/(45/3.6)^3)+$AB$5-(($AB$8)*(B3/3.6)^3)/((45/3.6)^3) -> 219.9723142 | F3: =E3/$Z$10 -> 2.97259884 | G3: =(($AC$21*COS(ATAN(A3))*($Z$9+$AA$3+$AA$6)*$Z$23+$AC$21*SIN(ATAN(A3))*($Z$9+$AA$3+$AA$6)+0.5*$Z$13*$Z$22*((B3/3.6)+$AC$16)^2)*(B3/3.6))/(1-$AC$20)-((($AA$4-$AA$4)*(B3/3.6)^3)/(45/3.6)^3)+$AA$5-(($AA$8)*(B3/3.6)^3)/((45/3.6)^3) -> 221.1104146 | H3: =G3/$Z$9 -> 3.509689121 | I3: =G3-C3 -> 21.11037111 | J3: =H3-D3 -> 0.3350852557 | K3: =E3-C3 -> 19.97227065 | L3: =F3-D3 -> -0.2020050253 | M3: 10 | N3: =(($AC$21*COS(ATAN(Z15))*($Z$9+$Z$3+$Z$6)*$Z$23+$AC$21*SIN(ATAN($Z$15))*($Z$9+$Z$3+$Z$6)+0.5*$Z$13*$Z$22*((M3/3.6)+$AC$16)^2)*(M3/3.6))/(1-$AC$20)-((($AA$4-$Z$4)*(M3/3.6)^3)/(45/3.6)^3)+$Z$5-(($Z$8)*(M3/3.6)^3)/((45/3.6)^3) -> 14.00810123 | O3: =N3/$Z$9 -> 0.2223508131 | P3: =(($AC$21*COS(ATAN(Z15))*($Z$10+$AB$3+$AB$6)*$Z$23+$AC$21*SIN(ATAN($Z$15))*($Z$10+$AB$3+$AB$6)+0.5*$Z$13*$Z$22*((M3/3.6)+$AC$16)^2)*(M3/3.6))/(1-$AC$20)-((($AA$4-$AB$4)*(M3/3.6)^3)/(45/3.6)^3)+$AB$5-(($AB$8)*(M3/3.6)^3)/((45/3.6)^3) -> 15.82958336 | Q3: =P3/$Z$10 -> 0.2139132887 | R3: =(($AC$21*COS(ATAN(Z15))*($Z$9+$AA$3+$AA$6)*$Z$23+$AC$21*SIN(ATAN($Z$15))*($Z$9+$AA$3+$AA$6)+0.5*$Z$13*$Z$22*((M3/3.6)+$AC$16)^2)*(M3/3.6))/(1-$AC$20)-((($AA$4-$AA$4)*(M3/3.6)^3)/(45/3.6)^3)+$AA$5-(($AA$8)*(M3/3.6)^3)/((45/3.6)^3) -> 16.33868699 | S3: =R3/$Z$9 -> 0.259344238 | T3: =R3-N3 -> 2.330585766 | U3: =S3-O3 -> 0.03699342485 | V3: =P3-N3 -> 1.821482136 | W3: =Q3-O3 -> -0.00843752444 | Y3: poids | Z3: 7.85 | AA3: 7 | AB3: 7.4
A4: 0.008 | B4: 31.36288339 | C4: =(($AC$21*COS(ATAN(A4))*($Z$9+$Z$3+$Z$6)*$Z$23+$AC$21*SIN(ATAN(A4))*($Z$9+$Z$3+$Z$6)+0.5*$Z$13*$Z$22*((B4/3.6)+$AC$16)^2)*(B4/3.6))/(1-$AC$20)-((($AA$4-$Z$4)*(B4/3.6)^3)/(45/3.6)^3)+$Z$5-(($Z$8)*(B4/3.6)^3)/((45/3.6)^3) -> 200.0000424 | D4: 3.174603848 | E4: =(($AC$21*COS(ATAN(A4))*($Z$10+$AB$3+$AB$6)*$Z$23+$AC$21*SIN(ATAN(A4))*($Z$10+$AB$3+$AB$6)+0.5*$Z$13*$Z$22*((B4/3.6)+$AC$16)^2)*(B4/3.6))/(1-$AC$20)-((($AA$4-$AB$4)*(B4/3.6)^3)/(45/3.6)^3)+$AB$5-(($AB$8)*(B4/3.6)^3)/((45/3.6)^3) -> 222.5733634 | F4: 3.007748155 | G4: =(($AC$21*COS(ATAN(A4))*($Z$9+$AA$3+$AA$6)*$Z$23+$AC$21*SIN(ATAN(A4))*($Z$9+$AA$3+$AA$6)+0.5*$Z$13*$Z$22*((B4/3.6)+$AC$16)^2)*(B4/3.6))/(1-$AC$20)-((($AA$4-$AA$4)*(B4/3.6)^3)/(45/3.6)^3)+$AA$5-(($AA$8)*(B4/3.6)^3)/((45/3.6)^3) -> 214.9070408 | H4: 3.41122287 | I4: =G4-C4 -> 14.90699838 | J4: =H4-D4 -> 0.236619022 | K4: =E4-C4 -> 22.573321 | L4: =F4-D4 -> -0.1668556937 | M4: 11.5 | N4: =(($AC$21*COS(ATAN(Z16))*($Z$9+$Z$3+$Z$6)*$Z$23+$AC$21*SIN(ATAN($Z$15))*($Z$9+$Z$3+$Z$6)+0.5*$Z$13*$Z$22*((M4/3.6)+$AC$16)^2)*(M4/3.6))/(1-$AC$20)-((($AA$4-$Z$4)*(M4/3.6)^3)/(45/3.6)^3)+$Z$5-(($Z$8)*(M4/3.6)^3)/((45/3.6)^3) -> 17.51103003 | O4: =N4/$Z$9 -> 0.2779528576 | P4: =(($AC$21*COS(ATAN(Z16))*($Z$10+$AB$3+$AB$6)*$Z$23+$AC$21*SIN(ATAN($Z$15))*($Z$10+$AB$3+$AB$6)+0.5*$Z$13*$Z$22*((M4/3.6)+$AC$16)^2)*(M4/3.6))/(1-$AC$20)-((($AA$4-$AB$4)*(M4/3.6)^3)/(45/3.6)^3)+$AB$5-(($AB$8)*(M4/3.6)^3)/((45/3.6)^3) -> 19.73190321 | Q4: =P4/$Z$10 -> 0.2666473406 | R4: =(($AC$21*COS(ATAN(Z16))*($Z$9+$AA$3+$AA$6)*$Z$23+$AC$21*SIN(ATAN($Z$15))*($Z$9+$AA$3+$AA$6)+0.5*$Z$13*$Z$22*((M4/3.6)+$AC$16)^2)*(M4/3.6))/(1-$AC$20)-((($AA$4-$AA$4)*(M4/3.6)^3)/(45/3.6)^3)+$AA$5-(($AA$8)*(M4/3.6)^3)/((45/3.6)^3) -> 20.05807197 | S4: =R4/$Z$9 -> 0.3183820947 | T4: =R4-N4 -> 2.547041943 | U4: =S4-O4 -> 0.0404292372 | V4: =P4-N4 -> 2.22087318 | W4: =Q4-O4 -> -0.01130551693 | Y4: aero à 45km/h(W) | Z4: 204 | AA4: 235 | AB4: 225
A5: 0.016 | B5: 27.75277301 | C5: 200.0000166 | D5: 3.174603439 | E5: 224.5357913 | F5: 3.03426745 | G5: 210.2266546 | H5: 3.336931025 | I5: 10.22663795 | J5: 0.1623275866 | K5: 24.53577464 | L5: -0.1403359889 | M5: 13 | N5: 21.60072267 | O5: 0.3428686137 | P5: 24.27380171 | Q5: 0.3280243474 | R5: 24.43407264 | S5: 0.3878424228 | T5: 2.833349973 | U5: 0.04497380909 | V5: 2.67307904 | W5: -0.01484426637 | Y5: pénalité position(W) | Z5: 0 | AA5: 2 | AB5: 0 | AC5: manuel
A6: 0.024 | B6: 24.43014555 | C6: 200.0000022 | D6: 3.174603209 | E6: 225.9433125 | F6: 3.053288007 | G6: 206.8697345 | H6: 3.283646579 | I6: 6.869732294 | J6: 0.1090433697 | K6: 25.94331035 | L6: -0.1213152021 | M6: 14.5 | N6: 20.90130371 | O6: 0.3317667255 | P6: 23.29668457 | Q6: 0.3148200617 | R6: 24.16354236 | S6: 0.3835482914 | T6: 3.262238651 | U6: 0.05178156588 | V6: 2.395380861 | W6: -0.01694666377 | Y6: poids matériel | Z6: 2 | AA6: 2 | AB6: 2
A7: 0.032 | B7: 21.48317436 | C7: 200.0006037 | D7: 3.174612757 | E7: 226.9104624 | F7: 3.0663576 | G7: 204.5653682 | H7: 3.247069336 | I7: 4.564764488 | J7: 0.07245657917 | K7: 26.90985871 | L7: -0.1082551569 | M7: 16 | N7: 17.43501083 | O7: 0.2767462037 | P7: 19.11145145 | Q7: 0.2582628575 | R7: 21.25512782 | S7: 0.3373829813 | T7: 3.82011699 | U7: 0.06063677763 | V7: 1.676440623 | W7: -0.01848334618 | Y7: taille de cadre | Z7: XS | AA7: M | AB7: M | AC7: à titre indicatif
A8: 0.04 | B8: 18.94780685 | C8: 200.0000016 | D8: 3.174603201 | E8: 227.5544967 | F8: 3.075060767 | G8: 203.0271403 | H8: 3.222653021 | I8: 3.027138672 | J8: 0.04804982019 | K8: 27.55449511 | L8: -0.09954243379 | M8: 17.5 | N8: 21.44633217 | O8: 0.340417971 | P8: 23.44198332 | Q8: 0.3167835584 | R8: 25.84379052 | S8: 0.4102188971 | T8: 4.397458346 | U8: 0.06980092612 | V8: 1.99565115 | W8: -0.02363441259 | Y8: gain taille cadre aero (W) | Z8: 10 | AA8: 0 | AB8: 0 | AC8: 5W/taille cadre
A9: 0.048 | B9: 16.80978147 | C9: 200.0000024 | D9: 3.174603213 | E9: 227.9797059 | F9: 3.080806837 | G9: 202.0130411 | H9: 3.206556207 | I9: 2.013038613 | J9: 0.03195299385 | K9: 27.9797035 | L9: -0.0937963763 | M9: 19 | N9: 45.34967292 | O9: 0.7198360781 | P9: 50.49632149 | Q9: 0.6823827228 | R9: 50.20909081 | S9: 0.7969696953 | T9: 4.859417889 | U9: 0.07713361728 | V9: 5.146648573 | W9: -0.03745335522 | Y9: masse cycliste (kg) - CANYON | Z9: 63 | AB9: CdA exemple
A10: 0.056 | B10: 15.02352806 | C10: 200.0000023 | D10: 3.174603211 | E10: 228.2612181 | F10: 3.084611055 | G10: 201.3416484 | H10: 3.195899181 | I10: 1.341646099 | J10: 0.02129596983 | K10: 28.2612158 | L10: -0.08999215572 | M10: 20.5 | N10: 46.0089679 | O10: 0.7303010778 | P10: 50.88732228 | Q10: 0.6876665173 | R10: 51.72827106 | S10: 0.8210836676 | T10: 5.719303157 | U10: 0.09078258979 | V10: 4.878354375 | W10: -0.04263456056 | Y10: masse cycliste 2 (kg) - ROSE | Z10: 74 | AB10: Barres | AC10: 0.408
A11: 0.064 | B11: 13.53285501 | C11: 200.0000018 | D11: 3.174603203 | E11: 228.4502421 | F11: 3.087165434 | G11: 200.8908339 | H11: 3.188743396 | I11: 0.8908321396 | J11: 0.01414019269 | K11: 28.4502403 | L11: -0.08743776938 | M11: 22 | N11: 62.74656503 | O11: 0.9959772227 | P11: 69.62772738 | Q11: 0.9409152349 | R11: 69.27487758 | S11: 1.099601231 | T11: 6.528312543 | U11: 0.1036240086 | V11: 6.88116235 | W11: -0.05506198784 | AB11: Cocottes | AC11: 0.324
A12: 0.072 | B12: 12.28373319 | C12: 200.0000013 | D12: 3.174603195 | E12: 228.5796839 | F12: 3.088914647 | G12: 200.58212 | H12: 3.183843175 | I12: 0.5821187127 | J12: 0.009239979567 | K12: 28.57968259 | L12: -0.08568854804 | M12: 23.5 | N12: 69.20347559 | O12: 1.098467866 | P12: 76.53709423 | Q12: 1.034285057 | R12: 76.80747742 | S12: 1.219166308 | T12: 7.604001834 | U12: 0.1206984418 | V12: 7.333618642 | W12: -0.06418280932 | Y12: altitude (m) - influence densité air | Z12: 200 | AB12: Ceintre | AC12: 0.307
A13: 0.08 | B13: 11.22971002 | C13: 200.0000009 | D13: 3.174603189 | E13: 228.6702793 | F13: 3.09013891 | G13: 200.366053 | H13: 3.180413539 | I13: 0.3660520961 | J13: 0.005810350732 | K13: 28.67027844 | L13: -0.08446427884 | M13: 25 | N13: 81.92623026 | O13: 1.300416353 | P13: 90.55399628 | Q13: 1.223702652 | R13: 90.6895436 | S13: 1.439516565 | T13: 8.763313347 | U13: 0.1391002118 | V13: 8.627766025 | W13: -0.07671370082 | Y13: CdA (coeff trainée x aire frontale) | Z13: 0.32 | AB13: Aerobars | AC13: 0.2914
A14: 0.088 | B14: 10.33296155 | C14: 200.0000006 | D14: 3.174603184 | E14: 228.7350919 | F14: 3.091014755 | G14: 200.2114773 | H14: 3.177959957 | I14: 0.2114767094 | J14: 0.003356773165 | K14: 28.73509127 | L14: -0.08358842912 | M14: 26.5 | N14: 97.4405075 | O14: 1.546674722 | P14: 107.6967726 | Q14: 1.455361792 | R14: 107.4972964 | S14: 1.706306292 | T14: 10.0567889 | U14: 0.1596315699 | V14: 10.25626511 | W14: -0.09131293022
A15: 0.096 | B15: 9.563459663 | C15: 200.0000004 | D15: 3.174603181 | E15: 228.7824407 | F15: 3.091654604 | G15: 200.0985521 | H15: 3.176167493 | I15: 0.09855163995 | J15: 0.001564311745 | K15: 28.7824403 | L15: -0.08294857699 | M15: 28 | N15: 111.6072313 | O15: 1.771543354 | P15: 123.2227393 | Q15: 1.665172153 | R15: 123.1499579 | S15: 1.954761236 | T15: 11.54272656 | U15: 0.183217882 | V15: 11.615508 | W15: -0.1063712012 | Y15: pente - seulement Tab vitesse | Z15: 0 | AB15: vitesse vent (km/h) | AC15: 0
A16: 0.104 | B16: 8.897592524 | C16: 200.0000003 | D16: 3.174603179 | E16: 228.8177121 | F16: 3.092131244 | G16: 200.0144312 | H16: 3.174832241 | I16: 0.01443090981 | J16: 0.0002290620604 | K16: 28.81771178 | L16: -0.08247193503 | M16: 29.5 | N16: 127.2025975 | O16: 2.019088849 | P16: 140.305941 | Q16: 1.896026229 | R16: 140.4013358 | S16: 2.228592631 | T16: 13.1987383 | U16: 0.2095037825 | V16: 13.10334349 | W16: -0.1230626195 | AB16: vitesse vent (m/s) | AC16: =AC15/3.6 -> 0
A17: 0.112 | B17: 8.316844791 | C17: 200.0008536 | D17: 3.174616723 | E17: 228.8454358 | F17: 3.092505889 | G17: 199.9514846 | H17: 3.173833088 | I17: -0.04936898425 | J17: -0.0007836346706 | K17: 28.84458223 | L17: -0.08211083418 | M17: 31 | N17: 144.3031405 | O17: 2.290526039 | P17: 159.0298009 | Q17: 2.149051364 | R17: 159.3370757 | S17: 2.529159932 | T17: 15.03393522 | U17: 0.2386338923 | V17: 14.72666046 | W17: -0.1414746753 | AB17: positive vent de face ; négatif vent de dos
A18: 0.12 | B18: 7.806509483 | C18: 200.0007198 | D18: 3.1746146 | E18: 228.8659007 | F18: 3.092782441 | G18: 199.9021795 | H18: 3.173050468 | I18: -0.09854030809 | J18: -0.001564131874 | K18: 28.86518086 | L18: -0.08183215868 | M18: 32.5 | N18: 162.9853947 | O18: 2.587069757 | P18: 179.4777425 | Q18: 2.425374899 | R18: 180.0428231 | S18: 2.857822589 | T18: 17.05742843 | U18: 0.2707528322 | V18: 16.4923478 | W18: -0.1616948584 | Y18: densité air niv. mer(kg/m²) | Z18: 1.225
A19: 0.128 | B19: 7.355016467 | C19: 200.0006112 | D19: 3.174612877 | E19: 228.8819051 | F19: 3.092998718 | G19: 199.863606 | H19: 3.17243819 | I19: -0.1370052592 | J19: -0.002174686655 | K19: 28.88129387 | L19: -0.08161415907 | M19: 34 | N19: 183.3258945 | O19: 2.909934834 | P19: 201.733189 | Q19: 2.726124175 | R19: 202.6042236 | S19: 3.215940057 | T19: 19.27832905 | U19: 0.306005223 | V19: 18.4072944 | W19: -0.1838106591 | Y19: R constante gaz parfait | Z19: 8.31445
A20: 0.136 | B20: 6.9530748 | C20: 200.0005227 | D20: 3.174611471 | E20: 228.8945909 | F20: 3.093170148 | G20: 199.8330216 | H20: 3.171952724 | I20: -0.1675010718 | J20: -0.002658747171 | K20: 28.89406826 | L20: -0.08144132327 | M20: 35.5 | N20: 205.4011744 | O20: 3.260336102 | P20: 225.8795636 | Q20: 3.052426535 | R20: 227.1069226 | S20: 3.604871788 | T20: 21.70574819 | U20: 0.3445356856 | V20: 20.47838915 | W20: -0.2079095672 | Y20: température (C°) | Z20: 15 | AA20: =Z20+273.15 -> 288.15 | AB20: perte rendement | AC20: 0.03
A21: 0.144 | B21: 6.593190585 | C21: 200.00045 | D21: 3.174610317 | E21: 228.9047699 | F21: 3.093307701 | G21: 199.808475 | H21: 3.171563095 | I21: -0.1919749805 | J21: -0.003047221913 | K21: 28.9043199 | L21: -0.081302616 | M21: 37 | N21: 229.2877688 | O21: 3.639488394 | P21: 252.0002897 | Q21: 3.405409321 | R21: 253.6365658 | S21: 4.025977234 | T21: 24.34879696 | U21: 0.3864888407 | V21: 22.71252094 | W21: -0.2340790729 | Y21: masse molaire air (kg/mol) | Z21: 0.0289644 | AB21: constante g (m/s²) | AC21: 9.806
A22: 0.152 | B22: 6.269268837 | C22: 200.0003899 | D22: 3.174609363 | E22: 228.9130286 | F22: 3.093419305 | G22: 199.7885549 | H22: 3.171246904 | I22: -0.211834964 | J22: -0.003362459747 | K22: 28.91263871 | L22: -0.08119005791 | M22: 38.5 | N22: 255.062212 | O22: 4.04860654 | P22: 280.1787907 | Q22: 3.786199874 | R22: 282.2787985 | S22: 4.480615849 | T22: 27.21658647 | U22: 0.4320093091 | V22: 25.11657865 | W22: -0.2624066661 | Y22: rho air | Z22: =Z18*EXP((-AC21*Z21*Z12)/(Z19*AA20)) -> 1.196296693
A23: 0.16 | B23: 5.976311708 | C23: 200.0003399 | D23: 3.17460857 | E23: 228.9197976 | F23: 3.093510779 | G23: 199.7722253 | H23: 3.170987704 | I23: -0.2281145887 | J23: -0.003620866487 | K23: 28.9194577 | L23: -0.08109779146 | M23: 40 | N23: 282.8010386 | O23: 4.488905374 | P23: 310.4984897 | Q23: 4.195925537 | R23: 313.1192664 | S23: 4.970147086 | T23: 30.31822784 | U23: 0.4812417117 | V23: 27.69745118 | W23: -0.292979837 | Y23: coeff résis roulement | Z23: 0.005
A24: 0.168 | B24: 5.71018865 | C24: 200.0002981 | D24: 3.174607906 | E24: 228.9253973 | F24: 3.09358645 | G24: 199.7587148 | H24: 3.170773251 | I24: -0.2415832691 | J24: -0.003834655064 | K24: 28.92509922 | L24: -0.0810214561 | M24: 41.5 | N24: 312.5807828 | O24: 4.961599727 | P24: 343.0428102 | Q24: 4.635713651 | R24: 346.2436149 | S24: 5.495930396 | T24: 33.66283216 | U24: 0.5343306692 | V24: 30.46202741 | W24: -0.3258860755 | Y24: coeff trainé | Z24: 0.65 | AA24: pas pris en compte
A25: 0.176 | B25: 5.467460231 | C25: 200.0002628 | D25: 3.174607346 | E25: 228.9300691 | F25: 3.093649583 | G25: 199.7474416 | H25: 3.170594311 | I25: -0.2528212472 | J25: -0.004013035669 | K25: 28.92980632 | L25: -0.08095776334 | M25: 43 | N25: 344.4779791 | O25: 5.467904431 | P25: 377.8951754 | Q25: 5.106691559 | R25: 381.7374897 | S25: 6.059325233 | T25: 37.25951056 | U25: 0.5914208026 | V25: 33.41719623 | W25: -0.3612128717 | Y25: aire frontale (m²) | Z25: 0.5 | AB25: puissance cible | AC25: 200
A26: 0.184 | B26: 5.24524212 | C26: 200.0002329 | D26: 3.174606872 | E26: 228.9339975 | F26: 3.093702669 | G26: 199.7379615 | H26: 3.170443834 | I26: -0.262271383 | J26: -0.004163037825 | K26: 28.93376455 | L26: -0.0809042033 | M26: 44.5 | N26: 378.569162 | O26: 6.009034317 | P26: 415.1390085 | Q26: 5.609986602 | R26: 419.6865361 | S26: 6.66169105 | T26: 41.11737415 | U26: 0.6526567325 | V26: 36.56984653 | W26: -0.3990477157
A27: 0.192 | B27: 5.041099265 | C27: 200.0002074 | D27: 3.174606467 | E27: 228.9373245 | F27: 3.093747628 | G27: 199.729932 | H27: 3.17031638 | I27: -0.2702754587 | J27: -0.004290086646 | K27: 28.93711706 | L27: -0.08085883894 | M27: 46 | N27: 414.9308658 | O27: 6.586204219 | P27: 454.857733 | Q27: 6.146726122 | R27: 460.1763998 | S27: 7.304387299 | T27: 45.24553403 | U27: 0.7181830798 | V27: 39.92686721 | W27: -0.4394780974
A28: 0.2 | B28: 4.852962939 | C28: 200.0001856 | D28: 3.17460612 | E28: 228.940161 | F28: 3.09378596 | G28: 199.7230856 | H28: 3.170207707 | I28: -0.2770999817 | J28: -0.004398412407 | K28: 28.93997549 | L28: -0.08082015982 | M28: 47.5 | N28: 453.639625 | O28: 7.200628968 | P28: 497.1347721 | Q28: 6.718037461 | R28: 503.2927263 | S28: 7.988773433 | T28: 49.65310132 | U28: 0.7881444654 | V28: 43.49514714 | W28: -0.4825915069
A30: puissance- pente
A32: puissance brute identique | C32: vélo | D32: Aeroad | E32: Rose | F32: Ultimate
C33: puissance (W) | D33: =(($AC$21*COS(ATAN(H37))*($Z$9+$Z$3+$Z$6)*$Z$23+$AC$21*SIN(ATAN(H37))*($Z$9+$Z$3+$Z$6)+0.5*$Z$13*$Z$22*((D34/3.6)+$AC$16)^2)*(D34/3.6))/(1-$AC$20)-((($AA$4-$Z$4)*(D34/3.6)^3)/(45/3.6)^3)+$Z$5-(($Z$8)*(D34/3.6)^3)/((45/3.6)^3) -> 203.5243381 | E33: =(($AC$21*COS(ATAN(H37))*($Z$10+$AB$3+$AB$6)*$Z$23+$AC$21*SIN(ATAN(H37))*($Z$10+$AB$3+$AB$6)+0.5*$Z$13*$Z$22*((E34/3.6)+$AC$16)^2)*(E34/3.6))/(1-$AC$20)-((($AA$4-$AB$4)*(E34/3.6)^3)/(45/3.6)^3)+$AB$5-(($AB$8)*(E34/3.6)^3)/((45/3.6)^3) -> 199.9999997 | F33: =(($AC$21*COS(ATAN(H37))*($Z$9+$AA$3+$AA$6)*$Z$23+$AC$21*SIN(ATAN(H37))*($Z$9+$AA$3+$AA$6)+0.5*$Z$13*$Z$22*((F34/3.6)+$AC$16)^2)*(F34/3.6))/(1-$AC$20)-((($AA$4-$AA$4)*(F34/3.6)^3)/(45/3.6)^3)+$AA$5-(($AA$8)*(F34/3.6)^3)/((45/3.6)^3) -> 202.5007608
C34: vitesse (km/h) | D34: 11.66819247 | E34: 10.1010465 | F34: 11.59047055
C35: gain vitesse / aeroad | D35: 0 | E35: =(E34-$D$34)/E34 -> -0.1551468919 | F35: =(F34-$D$34)/F34 -> -0.006705674781
C36: gain temps (min) | D36: 0 | E36: =(($H$38/D34)-($H$38/E34))*60 -> -15.95587926 | F36: =(($H$38/D34)-($H$38/F34))*60 -> -0.6896363559 | G36: puissance (W) | H36: 200
G37: pente | H37: 0.078
A38: puissance en W/kg identique | C38: puissance (W) | D38: =(($AC$21*COS(ATAN(H37))*($Z$9+$Z$3+$Z$6)*$Z$23+$AC$21*SIN(ATAN(H37))*($Z$9+$Z$3+$Z$6)+0.5*$Z$13*$Z$22*((D40/3.6)+$AC$16)^2)*(D40/3.6))/(1-$AC$20)-((($AA$4-$Z$4)*(D40/3.6)^3)/(45/3.6)^3)+$Z$5-(($Z$8)*(D40/3.6)^3)/((45/3.6)^3) -> 203.5243381 | E38: =(($AC$21*COS(ATAN(H37))*($Z$10+$AB$3+$AB$6)*$Z$23+$AC$21*SIN(ATAN(H37))*($Z$10+$AB$3+$AB$6)+0.5*$Z$13*$Z$22*((E40/3.6)+$AC$16)^2)*(E40/3.6))/(1-$AC$20)-((($AA$4-$AB$4)*(E40/3.6)^3)/(45/3.6)^3)+$AB$5-(($AB$8)*(E40/3.6)^3)/((45/3.6)^3) -> 239.8838741 | F38: =(($AC$21*COS(ATAN(H37))*($Z$9+$AA$3+$AA$6)*$Z$23+$AC$21*SIN(ATAN(H37))*($Z$9+$AA$3+$AA$6)+0.5*$Z$13*$Z$22*((F40/3.6)+$AC$16)^2)*(F40/3.6))/(1-$AC$20)-((($AA$4-$AA$4)*(F40/3.6)^3)/(45/3.6)^3)+$AA$5-(($AA$8)*(F40/3.6)^3)/((45/3.6)^3) -> 202.5003648 | G38: distance (km) | H38: 20
C39: puissance (W/kg) | D39: =D38/Z9 -> 3.23054505 | E39: =E38/Z10 -> 3.241673974 | F39: =F38/Z9 -> 3.214291505
C40: vitesse (km/h) | D40: 11.66819247 | E40: 12.00992199 | F40: 11.59044907
C41: gain vitesse / aeroad | D41: 0 | E41: =(E40-$D$34)/E40 -> 0.02845393322 | F41: =(F40-$D$34)/F40 -> -0.006707540537
C42: gain temps (min) | D42: 0 | E42: =(($H$38/D40)-($H$38/E40))*60 -> 2.926307561 | F42: =(($H$38/D40)-($H$38/F40))*60 -> -0.6898282372

Sheet 2 profils
A1: vitesse selon pente | L1: Profil vélo | R1: Info
A2: pente | B2: Aeroad | C2: Rose | D2: Ultimate | E2: puissance aeroad | F2: puissance rose | G2: puissance ultimate | M2: Aeroad CF SLX | N2: Ultimate CF SLX | O2: Rose Six | R2: CdA exemple
A3: 0 | B3: 34.80924112 | C3: 34.36850031 | D3: 33.54368249 | E3: =(($P$25*COS(ATAN(A3))*($M$11+$M$3+$M$8)*$P$22+$P$25*SIN(ATAN(A3))*($M$11+$M$3+$M$8)+0.5*$M$13*$M$25*((B3/3.6)+$P$18)^2)*(B3/3.6))/(1-$P$23)-((($N$4-$M$4)*(B3/3.6)^3)/(45/3.6)^3)+$M$5-(($M$7)*(B3/3.6)^3)/((45/3.6)^3) -> 199.9999931 | F3: =(($P$25*COS(ATAN(A3))*($P$11+$O$3+$O$8)*$P$22+$P$25*SIN(ATAN(A3))*($P$11+$O$3+$O$8)+0.5*$P$13*$M$25*((C3/3.6)+$P$18)^2)*(C3/3.6))/(1-$P$23)-((($N$4-$O$4)*(C3/3.6)^3)/(45/3.6)^3)+$O$5-(($O$7)*(C3/3.6)^3)/((45/3.6)^3) -> 215.000058 | G3: =(($P$25*COS(ATAN(A3))*($M$11+$N$3+$N$8)*$P$22+$P$25*SIN(ATAN(A3))*($M$11+$N$3+$N$8)+0.5*$M$13*$M$25*((D3/3.6)+$P$18)^2)*(D3/3.6))/(1-$P$23)-((($N$4-$N$4)*(D3/3.6)^3)/(45/3.6)^3)+$N$5-(($N$7)*(D3/3.6)^3)/((45/3.6)^3) -> 200.0000685 | L3: poids vélo et matériel | M3: 7.85 | N3: 7 | O3: 7.4 | R3: Barres | S3: 0.408
A4: 0.008 | B4: 31.10366858 | C4: 30.50042936 | D4: 30.12244552 | E4: =(($P$25*COS(ATAN(A4))*($M$11+$M$3+$M$8)*$P$22+$P$25*SIN(ATAN(A4))*($M$11+$M$3+$M$8)+0.5*$M$13*$M$25*((B4/3.6)+$P$18)^2)*(B4/3.6))/(1-$P$23)-((($N$4-$M$4)*(B4/3.6)^3)/(45/3.6)^3)+$M$5-(($M$7)*(B4/3.6)^3)/((45/3.6)^3) -> 199.9999872 | F4: =(($P$25*COS(ATAN(A4))*($P$11+$O$3+$O$8)*$P$22+$P$25*SIN(ATAN(A4))*($P$11+$O$3+$O$8)+0.5*$P$13*$M$25*((C4/3.6)+$P$18)^2)*(C4/3.6))/(1-$P$23)-((($N$4-$O$4)*(C4/3.6)^3)/(45/3.6)^3)+$O$5-(($O$7)*(C4/3.6)^3)/((45/3.6)^3) -> 215.0000384 | G4: =(($P$25*COS(ATAN(A4))*($M$11+$N$3+$N$8)*$P$22+$P$25*SIN(ATAN(A4))*($M$11+$N$3+$N$8)+0.5*$M$13*$M$25*((D4/3.6)+$P$18)^2)*(D4/3.6))/(1-$P$23)-((($N$4-$N$4)*(D4/3.6)^3)/(45/3.6)^3)+$N$5-(($N$7)*(D4/3.6)^3)/((45/3.6)^3) -> 200.0000401 | L4: aero à 45km/h(W) | M4: 204 | N4: 235 | O4: 225 | R4: Cocottes | S4: 0.324
A5: 0.016 | B5: 27.56195363 | C5: 26.82455781 | D5: 26.83950609 | E5: 199.9999859 | F5: 215.0000042 | G5: 200.0000201 | L5: pénalité position(W) | M5: 0 | N5: 2 | O5: 0 | P5: manuel | R5: Ceintre | S5: 0.307
A6: 0.024 | B6: 24.29626 | C6: 23.46933475 | D6: 23.7909823 | E6: 199.9999889 | F6: 215.0000028 | G6: 200.0000087 | L6: taille de cadre | M6: XS | N6: M | O6: M | P6: à titre indicatif | R6: Aerobars | S6: 0.2914
A7: 0.032 | B7: 21.39256058 | C7: 20.52593688 | D7: 21.05429559 | E7: 199.9999932 | F7: 215.0000142 | G7: 200.0000033 | L7: gain taille cadre aero 45km/h (W) | M7: 10 | N7: 0 | O7: 0 | P7: 5W/taille cadre
A8: 0.04 | B8: 18.88773061 | C8: 18.02348578 | D8: 18.66826252 | E8: 199.9999964 | F8: 215.0000194 | G8: 200.0000011 | L8: poids matériel | M8: 2 | N8: 2 | O8: 2
A9: 0.048 | B9: 16.76997357 | C9: 15.93601651 | D9: 16.63031625 | E9: 199.9990635 | F9: 215.0000174 | G9: 199.9991453
A10: 0.056 | B10: 14.99694047 | C10: 14.2076517 | D10: 14.90913024 | E10: 199.9994625 | F10: 215.0000129 | G10: 199.9995105 | L10: Profil cycliste
A11: 0.064 | B11: 13.51478236 | C11: 12.77536531 | D11: 13.46020641 | E11: 199.9996882 | F11: 215.0000088 | G11: 199.9997157 | L11: masse cycliste 1 (kg) - CANYON | M11: 63 | O11: masse cycliste 2 (kg) - ROSE | P11: 74
A12: 0.072 | B12: 12.27118593 | C12: 11.58148999 | D12: 12.23791223 | E12: 199.9998152 | F12: 215.0000058 | G12: 199.9998312 | L12: puissance (W) | M12: 200 | O12: puissance (W) | P12: 215
A13: 0.08 | B13: 11.22080432 | C13: 10.57803573 | D13: 11.20128796 | E13: 199.9998876 | F13: 215.0000038 | G13: 199.9998971 | L13: CdA (coeff trainée x aire frontale) | M13: 0.325 | O13: CdA (coeff trainée x aire frontale) | P13: 0.33
A14: 0.088 | B14: 10.32650283 | C14: 9.72680445 | D14: 10.31596779 | E14: 199.9999297 | F14: 215.0000025 | G14: 199.9999361 | L14: puissance (W/kg) | M14: =M12/M11 -> 3.174603175 | O14: puissance (W/kg) | P14: =P12/P11 -> 2.905405405
A15: 0.096 | B15: 9.558679565 | C15: 8.997960892 | D15: 9.554073983 | E15: 199.9999548 | F15: 215.0000017 | G15: 199.9999589
A16: 0.104 | B16: 8.893987852 | C16: 8.368322845 | D16: 8.89333535 | E16: 199.9999702 | F16: 215.0000011 | G16: 199.9999729 | L16: Paramètres environmentaux
A17: 0.112 | B17: 8.31404479 | C17: 7.819838674 | D17: 8.316046183 | E17: 199.9999799 | F17: 215.0000008 | G17: 199.9999817 | L17: altitude (m) - influence densité air | M17: 100 | O17: vitesse vent (km/h) | P17: 0 | Q17: positive vent de face ; négatif vent de dos
A18: 0.12 | B18: 7.8043272 | C18: 7.338366427 | D18: 7.808115622 | E18: 199.9999861 | F18: 215.0000005 | G18: 199.9999873 | L18: température (C°) | M18: 20 | O18: vitesse vent (m/s) | P18: =P17/3.6 -> 0
A19: 0.128 | B19: 7.353291423 | C19: 6.912737934 | D19: 7.358280282 | E19: 199.9999902 | F19: 215.0000004 | G19: 199.9999911 | L19: température (K°) | M19: =M18+273.15 -> 293.15
A20: 0.136 | B20: 6.95169355 | C20: 6.534054942 | D20: 6.95748085 | E20: 199.999993 | F20: 215.0000003 | G20: 199.9999936
A21: 0.144 | B21: 6.59207158 | C21: 6.195163003 | D21: 6.598378792 | E21: 199.9999949 | F21: 215.0000002 | G21: 199.9999953 | L21: Constantes
A22: 0.152 | B22: 6.268352539 | C22: 5.890282607 | D22: 6.274984921 | E22: 199.9999962 | F22: 215.0009081 | G22: 199.9999965 | L22: densité air niv. mer(kg/m^3) | M22: 1.225 | O22: coeff résis roulement | P22: 0.005
A23: 0.16 | B23: 5.975554017 | C23: 5.614610551 | D23: 5.982374463 | E23: 199.9999971 | F23: 215.0007902 | G23: 199.9999974 | L23: R constante gaz parfait | M23: 8.31445 | O23: perte rendement | P23: 0.03
A24: 0.168 | B24: 5.709556455 | C24: 5.364257644 | D24: 5.716467998 | E24: 199.9999978 | F24: 215.0006919 | G24: 199.999998 | L24: masse molaire air (kg/mol) | M24: 0.0289644
A25: 0.176 | B25: 5.466928368 | C25: 5.135964973 | D25: 5.473862298 | E25: 199.9999983 | F25: 215.0006093 | G25: 199.9999985 | L25: rho air (kg/m^3) | M25: =M22*EXP((-P25*M24*M17)/(M23*M19)) -> 1.21080808 | O25: constante g (m/s²) | P25: 9.806
A26: 0.184 | B26: 5.244791237 | C26: 4.927002722 | D26: 5.251698942 | E26: 199.9999987 | F26: 215.0005394 | G26: 199.9999988
A27: 0.192 | B27: 5.040714324 | C27: 4.735068503 | D27: 5.0475616 | E27: 199.999999 | F27: 215.0004799 | G27: 199.999999
A28: 0.2 | B28: 4.852632135 | C28: 4.558207878 | D28: 4.859395189 | E28: 199.9999992 | F28: 215.0004289 | G28: 199.9999992
A30: pente | B30: écart Rose | C30: écart Ultimate
A31: 0 | B31: =C3-B3 -> -0.4407408118 | C31: =D3-B3 -> -1.265558626
A32: 0.008 | B32: =C4-B4 -> -0.6032392149 | C32: =D4-B4 -> -0.9812230605
A33: 0.016 | B33: -0.7373958168 | C33: -0.7224475403
A34: 0.024 | B34: -0.826925257 | C34: -0.5052777061
A35: 0.032 | B35: -0.8666237049 | C35: -0.3382649926
A36: 0.04 | B36: -0.8642448299 | C36: -0.2194680919
A37: 0.048 | B37: -0.8339570561 | C37: -0.1396573158
A38: 0.056 | B38: -0.7892887752 | C38: -0.08781022734
A39: 0.064 | B39: -0.7394170508 | C39: -0.05457594405
A40: 0.072 | B40: -0.689695943 | C40: -0.03327370027
A41: 0.08 | B41: -0.6427685866 | C41: -0.01951635279
A42: 0.088 | B42: -0.5996983833 | C42: -0.01053504706
A43: 0.096 | B43: -0.5607186739 | C43: -0.004605582403
A44: 0.104 | B44: -0.5256650063 | C44: -0.0006525021597
A45: 0.112 | B45: -0.494206116 | C45: 0.002001393499
A46: 0.12 | B46: -0.4659607731 | C46: 0.003788422226
A47: 0.128 | B47: -0.4405534883 | C47: 0.004988858998
A48: 0.136 | B48: -0.417638608 | C48: 0.005787300232
A49: 0.144 | B49: -0.3969085773 | C49: 0.006307211367
A50: 0.152 | B50: -0.378069932 | C50: 0.006632381742
A51: 0.16 | B51: -0.360943465 | C51: 0.006820446887
A52: 0.168 | B52: -0.345298811 | C52: 0.006911542919
A53: 0.176 | B53: -0.3309633947 | C53: 0.006933930643
A54: 0.184 | B54: -0.3177885147 | C54: 0.006907704975
A55: 0.192 | B55: -0.3056458206 | C55: 0.006847276457
A56: 0.2 | B56: -0.2944242578 | C56: 0.006763053749

Sheet temps de montée
R1: Profil vélo | X1: Info
A2: pente | B2: longueur côte (km) | C2: vitesse (km/h) | D2: Aeroad | E2: temps montée Aeroad (h) | F2: vitesse (km/h) | G2: Rose | H2: temps montée Rose (h) | I2: vitesse (km/h) | J2: Ultimate | K2: temps montée Ultimate (h) | L2: différence Tps Rose - Aeroad | M2: différence Tps Ultimate - Aeroad | N2: différence Vitesse Rose - Aeroad | O2: différence Vitesse Ultimate - Aeroad | P2: différence Vitesse Ultimate - Rose | S2: Aeroad CF SLX | T2: Ultimate CF SLX | U2: Rose Six | X2: CdA exemple
A3: 0.001 | B3: =(SQRT($S$31^2+($S$31/($A3))^2))/1000 -> 100.00005 | C3: 34.34093994 | D3: =(($V$38*COS(ATAN($A3))*($S$19+$S$3+$S$8)*$V$35+$V$38*SIN(ATAN($A3))*($S$19+$S$3+$S$8)+0.5*$S$21*$S$38*((C3/3.6)+$V$29)^2)*(C3/3.6))/(1-$V$36)-((($T$4-$S$4)*(C3/3.6)^3)/(45/3.6)^3)+$S$5-(($S$7)*(C3/3.6)^3)/((45/3.6)^3) -> 200.0000469 | E3: =B3/C3 -> 2.911977662 | F3: 33.87899154 | G3: =(($V$38*COS(ATAN($A3))*($V$19+$U$3+$U$8)*$V$35+$V$38*SIN(ATAN($A3))*($V$19+$U$3+$U$8)+0.5*$V$21*$S$38*((F3/3.6)+$V$29)^2)*(F3/3.6))/(1-$V$36)-((($T$4-$U$4)*(F3/3.6)^3)/(45/3.6)^3)+$U$5-(($U$7)*(F3/3.6)^3)/((45/3.6)^3) -> 215.0000011 | H3: =B3/F3 -> 2.951683195 | I3: 33.11171729 | J3: =(($V$38*COS(ATAN($A3))*($S$19+$T$3+$T$8)*$V$35+$V$38*SIN(ATAN($A3))*($S$19+$T$3+$T$8)+0.5*$S$21*$S$38*((I3/3.6)+$V$29)^2)*(I3/3.6))/(1-$V$36)-((($T$4-$T$4)*(I3/3.6)^3)/(45/3.6)^3)+$T$5-(($T$7)*(I3/3.6)^3)/((45/3.6)^3) -> 200.0000646 | K3: =B3/I3 -> 3.020080448 | L3: =H3-E3 -> 0.03970553328 | M3: =K3-E3 -> 0.1081027867 | N3: =F3-C3 -> -0.4619484016 | O3: =I3-C3 -> -1.229222654 | P3: =I3-F3 -> -0.7672742527 | R3: poids vélo et matériel | S3: 7.85 | T3: 7 | U3: 7.4 | X3: Barres | Y3: 0.408
A4: 0.009 | B4: 11.1115611 | C4: 30.64962774 | D4: 200.0000399 | E4: 0.3625349448 | F4: 30.02766748 | G4: 215.0000019 | H4: 0.3700440971 | I4: 29.70250954 | J4: 200.0000371 | K4: 0.3740950268 | L4: 0.007509152281 | M4: 0.011560082 | N4: =F4-C4 -> -0.6219602579 | O4: =I4-C4 -> -0.9471182039 | P4: =I4-F4 -> -0.325157946 | R4: aero à 45km/h(W) | S4: 204 | T4: 235 | U4: 225 | X4: Cocottes | Y4: 0.324
A5: 0.017 | B5: 5.88320288 | C5: 27.1365035 | D5: 200.0000145 | E5: 0.2168003287 | F5: 26.38523241 | G5: 215.0000021 | H5: 0.2229733204 | I5: 26.44374771 | J5: 200.0000183 | K5: 0.2224799202 | L5: 0.006172991678 | M5: 0.005679591451 | N5: -0.7512710936 | O5: -0.6927557918 | P5: 0.05851530176 | R5: pénalité position(W) | S5: 0 | T5: 2 | U5: 0 | V5: manuel | X5: Ceintre | Y5: 0.307
A6: 0.025 | B6: 4.001249805 | C6: 23.91222613 | D6: 200.0000016 | E6: 0.1673307112 | F6: 23.07766168 | G6: 215.0000017 | H6: 0.1733819423 | I6: 23.43062566 | J6: 200.0000077 | K6: 0.1707700794 | L6: 0.006051231052 | M6: 0.003439368221 | N6: -0.8345644499 | O6: -0.4816004706 | P6: 0.3529639793 | R6: taille de cadre | S6: XS | T6: M | U6: M | V6: à titre indicatif | X6: Aerobars | Y6: 0.2914
A7: 0.033 | B7: 3.031952581 | C7: 21.05753041 | D7: 200.0007778 | E7: 0.1439842433 | F7: 20.18910682 | G7: 215.000001 | H7: 0.1501776482 | I7: 20.73654917 | J7: 200.0000029 | K7: 0.1462129767 | L7: 0.00619340492 | M7: 0.00222873347 | N7: -0.8684235905 | O7: -0.3209812416 | P7: 0.5474423489 | R7: gain taille cadre aero 45km/h (W) | S7: 10 | T7: 0 | U7: 0 | V7: 5W/taille cadre
A8: 0.041 | B8: 2.441073529 | C8: 18.6025126 | D8: 200.0000017 | E8: 0.131222786 | F8: 17.74082588 | G8: 215.0000004 | H8: 0.1375963862 | I8: 18.39492298 | J8: 200.000001 | K8: 0.1327036559 | L8: 0.006373600222 | M8: 0.001480869977 | N8: -0.8616867183 | O8: -0.2075896268 | P8: 0.6540970915 | R8: poids matériel (kg) | S8: 2 | T8: 2 | U8: 2
A9: 0.049 | B9: 2.043264858 | C9: 16.53062232 | D9: 200.0000025 | E9: 0.1236048358 | F9: 15.70162679 | G9: 215.0000002 | H9: 0.1301307747 | I9: 16.39869695 | J9: 199.9992019 | K9: 0.1245992205 | L9: 0.006525938846 | M9: 0.0009943846632 | N9: -0.8289955285 | O9: -0.1319253623 | P9: 0.6970701662 | R9: cassette max (T) | S9: 30 | T9: 28 | U9: 28
A10: 0.057 | B10: 1.757233654 | C10: 14.79691739 | D10: 200.0000023 | E10: 0.1187567388 | F10: 14.01374051 | G10: 215.0009043 | H10: 0.1253936201 | I10: 14.71408371 | J10: 199.9995425 | K10: 0.1194252859 | L10: 0.006636881306 | M10: 0.0006685471405 | N10: -0.7831768823 | O10: -0.08283368748 | P10: 0.7003431948 | R10: cassette min (T) | S10: 11 | T10: 11 | U10: 11
A11: 0.065 | B11: 1.541708113 | C11: 13.34731229 | D11: 200.0000018 | E11: 0.1155070084 | F11: 12.61420504 | G11: 215.0005499 | H11: 0.1222199978 | I11: 13.29592443 | J11: 199.9997338 | K11: 0.1159534353 | L11: 0.006712989428 | M11: 0.0004464269161 | N11: -0.7331072484 | O11: -0.05138786487 | P11: 0.6817193835 | R11: plateau min (T) | S11: 36 | T11: 34 | U11: 34
A12: 0.073 | B12: 1.373508164 | C12: 12.13017161 | D12: 200.0000013 | E12: 0.1132307281 | F12: 11.44653431 | G12: 215.0003373 | H12: 0.1199933645 | I12: 12.09895063 | J12: 199.9998415 | K12: 0.1135229166 | L12: 0.006762636411 | M12: 0.0002921885079 | N12: -0.6836373041 | O12: -0.03122098032 | P12: 0.6524163238 | R12: plateau max (T) | S12: 52 | T12: 50 | U12: 50
A13: 0.081 | B13: 1.23861128 | C13: 11.10116132 | D13: 200.0000009 | E13: 0.1115749285 | F13: 10.46400193 | G13: 215.0002105 | H13: 0.1183687932 | I13: 11.08297974 | J13: 199.999903 | K13: 0.1117579666 | L13: 0.006793864677 | M13: 0.0001830381651 | N13: -0.6371593874 | O13: -0.01818157809 | P13: 0.6189778093 | R13: longueur manivelle (mm) | S13: 170 | T13: 172.5 | U13: 172.5
A14: 0.089 | B14: 1.128036728 | C14: 10.22414483 | D14: 200.0000006 | E14: 0.110330668 | F14: 9.629544222 | G14: 215.0001342 | H14: 0.1171433146 | I14: 10.21448751 | J14: 199.9999391 | K14: 0.1104349804 | L14: 0.006812646619 | M14: 0.0001043124405 | N14: -0.5946006046 | O14: -0.00965731596 | P14: 0.5849432887 | R14: vitesse limite basse cadence (km/h) | S14: =(S11/S9)*PI()*0.7*(S23/60)*3.6 -> 12.66690158 | T14: =(T11/T9)*PI()*0.7*(S23/60)*3.6 -> 12.81769803 | U14: =(U11/U9)*PI()*0.7*(V23/60)*3.6 -> 12.81769803
A15: 0.097 | B15: 1.03576648 | C15: 9.470374836 | D15: 200.0000004 | E15: 0.1093691114 | F15: 8.914248227 | G15: 215.0000875 | H15: 0.1161922412 | I15: 9.466352534 | J15: 199.9999607 | K15: 0.1094155828 | L15: 0.006823129836 | M15: 4.64714911e-05 | N15: -0.5561266091 | O15: -0.004022301288 | P15: 0.5521043078 | R15: vitesse limite haute cadence (km/h) | S15: =(S12/S10)*PI()*0.7*(S23/60)*3.6 -> 49.89991531 | T15: =(T12/T10)*PI()*0.7*(S23/60)*3.6 -> 47.9806878 | U15: =(U12/U10)*PI()*0.7*(V23/60)*3.6 -> 47.9806878
A16: 0.105 | B16: 0.9576165613 | C16: 8.817192422 | D16: 200.0000003 | E16: 0.1086078783 | F16: 8.295649648 | G16: 215.0000584 | H16: 0.1154359938 | I16: 8.816930717 | J16: 199.999974 | K16: 0.108611102 | L16: 0.006828115517 | M16: 3.223703746e-06 | N16: -0.5215427737 | O16: -0.0002617045193 | P16: 0.5212810692
A17: 0.113 | B17: 0.8905878302 | C17: 8.246787258 | D17: 200.0008577 | E17: 0.1079920947 | F17: 7.756245654 | G17: 215.0000398 | H17: 0.1148220247 | I17: 8.249017123 | J17: 199.9999823 | K17: 0.1079629024 | L17: 0.006829930054 | M17: -2.919230221e-05 | N17: -0.4905416037 | O17: 0.00222986508 | P17: 0.4927714688
A18: 0.121 | B18: 0.8324742971 | C18: 7.744975907 | D18: 200.0007244 | E18: 0.1074857181 | F18: 7.282311668 | G18: 215.0000277 | H18: 0.1143145659 | I18: 7.748913868 | J18: 199.9999878 | K18: 0.1074310944 | L18: 0.006828847795 | M18: -5.462372289e-05 | N18: -0.4626642391 | O18: 0.003937960608 | P18: 0.4666021997 | R18: Profil cycliste
A19: 0.129 | B19: 0.7816171858 | C19: 7.300578881 | D19: 200.0006161 | E19: 0.1070623575 | F19: 6.862997489 | G19: 215.0000197 | H19: 0.1138886015 | I19: 7.305664025 | J19: 199.9999913 | K19: 0.1069878362 | L19: 0.006826244004 | M19: -7.452128377e-05 | N19: -0.4375813925 | O19: 0.005085143601 | P19: 0.4426665361 | R19: masse cycliste 1 (kg) - CANYON | S19: 63 | U19: masse cycliste 2 (kg) - ROSE | V19: 74
A20: 0.137 | B20: 0.7367451635 | C20: 6.904599971 | D20: 200.0005275 | E20: 0.1067035261 | F20: 6.489648429 | G20: 215.0000142 | H20: 0.1135262059 | I20: 6.910447248 | J20: 199.9999938 | K20: 0.1066132389 | L20: 0.00682267972 | M20: -9.028721661e-05 | N20: -0.4149515422 | O20: 0.00584727675 | P20: 0.4207988189 | R20: puissance (W) | S20: 200 | U20: puissance (W) | V20: 215
A21: 0.145 | B21: 0.69686746 | C21: 6.549769758 | D21: 200.0004547 | E21: 0.1063957186 | F21: 6.155298009 | G21: 215.0000104 | H21: 0.113214252 | I21: 6.556111985 | J21: 199.9999954 | K21: 0.1062927939 | L21: 0.006818533427 | M21: -0.0001029246935 | N21: -0.3944717492 | O21: 0.006342227162 | P21: 0.4008139764 | R21: CdA (coeff trainée x aire frontale) | S21: 0.325 | U21: CdA (coeff trainée x aire frontale) | V21: 0.33
A22: 0.153 | B22: 0.661200518 | C22: 6.230166016 | D22: 200.0003944 | E22: 0.1061288762 | F22: 5.854288314 | G22: 215.0000078 | H22: 0.1129429373 | I22: 6.236816155 | J22: 199.9999966 | K22: 0.106015714 | L22: 0.006814061072 | M22: -0.00011316219 | N22: -0.3758777019 | O22: 0.006650138961 | P22: 0.3825278408 | R22: puissance (W/kg) | S22: =S20/S19 -> 3.174603175 | U22: puissance (W/kg) | V22: =V20/V19 -> 2.905405405
A23: 0.161 | B23: 0.6291165117 | C23: 5.940925233 | D23: 200.0003442 | E23: 0.1058953761 | F23: 5.581984493 | G23: 215.0000059 | H23: 0.1127048118 | I23: 5.947751471 | J23: 199.9999974 | K23: 0.1057738399 | L23: 0.006809435735 | M23: -0.000121536188 | N23: -0.3589407403 | O23: 0.006826238007 | P23: 0.3657669783 | R23: cadence (tr/min) | S23: 80 | U23: cadence (tr/min) | V23: 80
A24: 0.169 | B24: 0.6001064878 | C24: 5.678022368 | D24: 200.0003021 | E24: 0.105689349 | F24: 5.334558566 | G24: 215.0000045 | H24: 0.1124941231 | I24: 5.684931413 | J24: 199.999998 | K24: 0.105560902 | L24: 0.006804774046 | M24: -0.0001284470057 | N24: -0.3434638023 | O24: 0.00690904452 | P24: 0.3503728469 | R24: force sur pédale (N) | S24: =(S20*60)/(S13*10^-3*S23*2*PI()) -> 140.4308321 | U24: force sur pédale (N) | V24: =(V20*60)/(U13*10^-3*V23*2*PI()) -> 148.7752729
A25: 0.177 | B25: 0.573753501 | C25: 5.438101652 | D25: 200.0002666 | E25: 0.1055062111 | F25: 5.108824426 | G25: 215.0000035 | H25: 0.1123063651 | I25: 5.445027373 | J25: 199.9999985 | K25: 0.1053720141 | L25: 0.006800153935 | M25: -0.0001341970468 | N25: -0.329277226 | O25: 0.006925721108 | P25: 0.3362029471
A26: 0.185 | B26: 0.5497127213 | C26: 5.218345696 | D26: 200.0002364 | E26: 0.1053423352 | F26: 4.902110868 | G26: 215.0000027 | H26: 0.1121379618 | I26: 5.225241303 | J26: 199.9999988 | K26: 0.1052033178 | L26: 0.006795626646 | M26: -0.0001390173785 | N26: -0.316234828 | O26: 0.006895607043 | P26: 0.323130435
A27: 0.193 | B27: 0.5276964875 | C27: 5.016373478 | D27: 200.0002107 | E27: 0.1051948165 | F27: 4.712163057 | G27: 215.0000022 | H27: 0.1119860415 | I27: 5.023206065 | J27: 199.9999991 | K27: 0.10505173 | L27: 0.006791224958 | M27: -0.0001430864524 | N27: -0.3042104205 | O27: 0.006832586996 | P27: 0.3110430075 | R27: Paramètres environmentaux
A28: 0.201 | B28: 0.5074629304 | C28: 4.830160225 | D28: 200.0001886 | E28: 0.1050613037 | F28: 4.537065426 | G28: 215.0000017 | H28: 0.1118482726 | I28: 4.836906925 | J28: 199.9999993 | K28: 0.1049147603 | L28: 0.006786968845 | M28: -0.0001465434618 | N28: -0.293094799 | O28: 0.00674669988 | P28: 0.2998414989 | R28: altitude (m) - influence densité air | S28: 100 | U28: vitesse vent (km/h) | V28: 0 | W28: positive vent de face ; négatif vent de dos
R29: température (C°) | S29: 20 | U29: vitesse vent (m/s) | V29: =V28/3.6 -> 0
R30: température (K°) | S30: =S29+273.15 -> 293.15
R31: distance vert. à gravir (m) | S31: 100
R34: Constantes
R35: densité air niv. mer(kg/m^3) | S35: 1.225 | U35: coeff résis roulement | V35: 0.005
R36: R constante gaz parfait | S36: 8.31445 | U36: perte rendement | V36: 0.03
R37: masse molaire air (kg/mol) | S37: 0.0289644
R38: rho air (kg/m^3) | S38: =S35*EXP((-V38*S37*S28)/(S36*S30)) -> 1.21080808 | U38: constante g (m/s²) | V38: 9.806

Sheet puissance 2E %V
A1: pente - vitesse (km/h) | B1: 10 | C1: 11.5 | D1: 13 | E1: 14.5 | F1: 16 | G1: 17.5 | H1: 19 | I1: 20.5 | J1: 22 | K1: 23.5 | L1: 25 | M1: 26.5 | N1: 28 | O1: 29.5 | P1: 31 | Q1: 32.5 | R1: 34 | S1: 35.5 | T1: 37 | U1: 38.5 | V1: 40 | W1: 41.5 | X1: 43 | Y1: 44.5 | AB1: Vélo
A2: 0 | B2: =_xludf.power($AE$20,$A2,$AB$8,$AB$2,$AB$5,$AB$22,$AB$12,$AB$21,B$1,$AE$19,$AC$3,$AB$3,$AB$4,$AB$7,$AE$15) -> 14.45 | C2: 18.08 | D2: 22.32 | E2: 27.25 | F2: 32.96 | G2: 39.51 | H2: 47 | I2: 55.49 | J2: 65.08 | K2: 75.84 | L2: =_xludf.power($AE$20,$A2,$AB$8,$AB$2,$AB$5,$AB$22,$AB$12,$AB$21,L$1,$AE$19,$AC$3,$AB$3,$AB$4,$AB$7,$AE$15) -> 87.84 | M2: 101.18 | N2: 115.93 | O2: 132.17 | P2: 149.97 | Q2: 169.43 | R2: 190.61 | S2: 213.6 | T2: 238.48 | U2: 265.33 | V2: 294.23 | W2: 325.26 | X2: 358.49 | Y2: 394.01 | AA2: poids | AB2: 9.85
A3: 0.007 | B3: 29.16 | C3: 35 | D3: 41.45 | E3: 48.59 | F3: 56.5 | G3: 65.26 | H3: 74.95 | I3: 85.65 | J3: 97.45 | K3: 110.41 | L3: 124.63 | M3: 140.17 | N3: 157.12 | O3: 175.57 | P3: 195.58 | Q3: 217.24 | R3: 240.63 | S3: 265.83 | T3: 292.92 | U3: 321.98 | V3: 353.08 | W3: 386.31 | X3: 421.75 | Y3: 459.48 | AA3: aero à 45km/h(W) | AB3: 204 | AC3: 235
A4: 0.014 | B4: 43.87 | C4: 51.91 | D4: 60.57 | E4: 69.91 | F4: 80.03 | G4: 91 | H4: 102.9 | I4: 115.81 | J4: 129.81 | K4: 144.98 | L4: 161.4 | M4: 179.15 | N4: 198.31 | O4: 218.96 | P4: 241.18 | Q4: 265.05 | R4: 290.65 | S4: 318.05 | T4: 347.35 | U4: 378.61 | V4: 411.92 | W4: 447.36 | X4: 485.01 | Y4: 524.94 | AA4: pénalité position(W) | AB4: 0
A5: 0.021 | B5: 58.58 | C5: 68.83 | D5: 79.69 | E5: 91.24 | F5: 103.56 | G5: 116.73 | H5: 130.84 | I5: 145.95 | J5: 162.16 | K5: 179.54 | L5: 198.16 | M5: 218.12 | N5: 239.49 | O5: 262.34 | P5: 286.77 | Q5: 312.84 | R5: 340.64 | S5: 370.26 | T5: 401.76 | U5: 435.22 | V5: 470.74 | W5: 508.39 | X5: 548.24 | Y5: 590.38 | AA5: poids matériel | AB5: 2
A6: 0.028 | B6: 73.28 | C6: 85.73 | D6: 98.79 | E6: 112.55 | F6: 127.08 | G6: 142.46 | H6: 158.76 | I6: 176.09 | J6: 194.5 | K6: 214.08 | L6: 234.91 | M6: 257.07 | N6: 280.64 | O6: 305.7 | P6: 332.33 | Q6: 360.61 | R6: 390.62 | S6: 422.43 | T6: 456.14 | U6: 491.81 | V6: 529.53 | W6: 569.38 | X6: 611.44 | Y6: 655.78 | AA6: taille de cadre | AB6: XS
A7: 0.035 | B7: 87.96 | C7: 102.62 | D7: 117.89 | E7: 133.85 | F7: 150.58 | G7: 168.16 | H7: 186.67 | I7: 206.2 | J7: 226.81 | K7: 248.6 | L7: 271.63 | M7: 296 | N7: 321.77 | O7: 349.03 | P7: 377.87 | Q7: 408.35 | R7: 440.56 | S7: 474.58 | T7: 510.49 | U7: 548.36 | V7: 588.29 | W7: 630.34 | X7: 674.6 | Y7: 721.15 | AA7: gain taille cadre aero (W) | AB7: 10
A8: 0.042 | B8: 102.64 | C8: 119.5 | D8: 136.97 | E8: 155.13 | F8: 174.06 | G8: 193.85 | H8: 214.56 | I8: 236.29 | J8: 259.1 | K8: 283.09 | L8: 308.32 | M8: 334.89 | N8: 362.87 | O8: 392.33 | P8: 423.37 | Q8: 456.05 | R8: 490.46 | S8: 526.69 | T8: 564.8 | U8: 604.87 | V8: 647 | W8: 691.25 | X8: 737.72 | Y8: 786.47 | AA8: masse cycliste (kg) - CANYON | AB8: 63 | AD8: CdA exemple
A9: 0.049 | B9: 117.31 | C9: 136.36 | D9: 156.03 | E9: 176.39 | F9: 197.53 | G9: 219.51 | H9: 242.42 | I9: 266.35 | J9: 291.36 | K9: 317.55 | L9: 344.99 | M9: 373.75 | N9: 403.93 | O9: 435.59 | P9: 468.83 | Q9: 503.71 | R9: 540.32 | S9: 578.74 | T9: 619.05 | U9: 661.33 | V9: 705.66 | W9: 752.11 | X9: 800.77 | Y9: 851.72 | AD9: Barres | AE9: 0.408
A10: 0.056 | B10: 131.96 | C10: 153.21 | D10: 175.08 | E10: 197.63 | F10: 220.96 | G10: 245.14 | H10: 270.26 | I10: 296.38 | J10: 323.59 | K10: 351.97 | L10: 381.61 | M10: 412.57 | N10: 444.94 | O10: 478.81 | P10: 514.24 | Q10: 551.32 | R10: 590.13 | S10: 630.75 | T10: 673.25 | U10: 717.73 | V10: 764.25 | W10: 812.9 | X10: 863.76 | Y10: 916.91 | AD10: Cocottes | AE10: 0.324
A11: 0.063 | B11: 146.59 | C11: 170.04 | D11: 194.1 | E11: 218.85 | F11: 244.37 | G11: 270.75 | H11: 298.05 | I11: 326.37 | J11: 355.78 | K11: 386.36 | L11: 418.18 | M11: 451.34 | N11: 485.91 | O11: 521.97 | P11: 559.59 | Q11: 598.87 | R11: 639.87 | S11: 682.69 | T11: 727.39 | U11: 774.06 | V11: 822.78 | W11: 873.62 | X11: 926.67 | Y11: 982.02 | AA11: altitude (m) - influence densité air | AB11: 100 | AD11: Ceintre | AE11: 0.307
A12: 0.07 | B12: =_xludf.power($AE$20,$A12,$AB$8,$AB$2,$AB$5,$AB$22,$AB$12,$AB$21,B$1,$AE$19,$AC$3,$AB$3,$AB$4,$AB$7,$AE$15) -> 161.2 | C12: 186.84 | D12: 213.09 | E12: 240.04 | F12: 267.75 | G12: 296.32 | H12: 325.82 | I12: 356.32 | J12: 387.92 | K12: 420.69 | L12: =_xludf.power($AE$20,$A12,$AB$8,$AB$2,$AB$5,$AB$22,$AB$12,$AB$21,L$1,$AE$19,$AC$3,$AB$3,$AB$4,$AB$7,$AE$15) -> 454.71 | M12: 490.06 | N12: 526.82 | O12: 565.07 | P12: 604.89 | Q12: 646.36 | R12: 689.55 | S12: 734.56 | T12: 781.45 | U12: 830.31 | V12: 881.22 | W12: 934.26 | X12: 989.5 | Y12: 1047.04 | AA12: CdA (coeff trainée x aire frontale) | AB12: 0.32 | AD12: Aerobars | AE12: 0.2914
A13: 0.077 | B13: 175.79 | C13: 203.62 | D13: 232.06 | E13: 261.19 | F13: 291.09 | G13: 321.85 | H13: 353.54 | I13: 386.23 | J13: 420.02 | K13: 454.98 | L13: 491.19 | M13: 528.72 | N13: 567.67 | O13: 608.11 | P13: 650.11 | Q13: 693.77 | R13: 739.15 | S13: 786.35 | T13: 835.43 | U13: 886.48 | V13: 939.58 | W13: 994.8 | X13: 1052.24 | Y13: 1111.96
A14: 0.084 | B14: 190.35 | C14: 220.37 | D14: 250.99 | E14: 282.31 | F14: 314.4 | G14: 347.34 | H14: 381.21 | I14: 416.09 | J14: 452.06 | K14: 489.21 | L14: 527.6 | M14: 567.32 | N14: 608.45 | O14: 651.08 | P14: 695.27 | Q14: 741.11 | R14: 788.68 | S14: 838.06 | T14: 889.32 | U14: 942.56 | V14: 997.84 | W14: 1055.25 | X14: 1114.87 | Y14: 1176.77 | AD14: vitesse vent (km/h) | AE14: 0
A15: 0.091 | B15: 204.89 | C15: 237.09 | D15: 269.89 | E15: 303.39 | F15: 337.66 | G15: 372.78 | H15: 408.83 | I15: 445.9 | J15: 484.05 | K15: 523.37 | L15: 563.95 | M15: 605.85 | N15: 649.16 | O15: 693.97 | P15: 740.34 | Q15: 788.36 | R15: 838.11 | S15: 889.67 | T15: 943.12 | U15: 998.53 | V15: 1056 | W15: 1115.59 | X15: 1177.39 | Y15: 1241.47 | AD15: vitesse vent (m/s) | AE15: =AE14/3.6 -> 0
A16: 0.098 | B16: 219.4 | C16: 253.77 | D16: 288.76 | E16: 324.43 | F16: 360.88 | G16: 398.18 | H16: 436.41 | I16: 475.65 | J16: 515.98 | K16: 557.48 | L16: 600.23 | M16: 644.31 | N16: 689.8 | O16: 736.78 | P16: 785.32 | Q16: 835.52 | R16: 887.45 | S16: 941.19 | T16: =_xludf.power($AE$20,$A16,$AB$8,$AB$2,$AB$5,$AB$22,$AB$12,$AB$21,T$1,$AE$19,$AC$3,$AB$3,$AB$4,$AB$7,$AE$15) -> 996.81 | U16: 1054.4 | V16: 1114.04 | W16: 1175.81 | X16: 1239.79 | Y16: 1306.05 | AD16: positive vent de face ; négatif vent de dos
A17: 0.105 | B17: 233.88 | C17: 270.43 | D17: 307.58 | E17: 345.43 | F17: 384.05 | G17: 423.52 | H17: 463.92 | I17: 505.33 | J17: 547.83 | K17: 591.51 | L17: 636.43 | M17: 682.68 | N17: 730.34 | O17: 779.5 | P17: 830.22 | Q17: 882.59 | R17: 936.69 | S17: 992.59 | T17: 1050.39 | U17: 1110.15 | V17: 1171.97 | W17: 1235.91 | X17: 1302.06 | Y17: 1370.49 | AA17: densité air niv. mer(kg/m²) | AB17: 1.225
A18: 0.112 | B18: 248.33 | C18: 287.04 | D18: 326.37 | E18: 366.38 | F18: 407.17 | G18: 448.81 | H18: 491.37 | I18: 534.95 | J18: 579.62 | K18: 625.46 | L18: 672.55 | M18: 720.97 | N18: 770.8 | O18: 822.12 | P18: 875.01 | Q18: 929.55 | R18: 985.81 | S18: 1043.89 | T18: 1103.85 | U18: 1165.78 | V18: 1229.76 | W18: 1295.87 | X18: 1364.19 | Y18: 1434.79 | AA18: R constante gaz parfait | AB18: 8.31445
A19: 0.119 | B19: 262.75 | C19: 303.62 | D19: 345.11 | E19: 387.28 | F19: 430.23 | G19: 474.03 | H19: 518.76 | I19: 564.5 | J19: 611.34 | K19: 659.34 | L19: 708.59 | M19: 759.17 | N19: 811.16 | O19: 864.65 | P19: 919.7 | Q19: 976.4 | R19: 1034.83 | S19: 1095.06 | T19: 1157.19 | U19: 1221.28 | V19: 1287.43 | W19: 1355.7 | X19: 1426.17 | Y19: 1498.94 | AA19: température (C°) | AB19: 20 | AC19: =AB19+273.15 -> 293.15 | AD19: perte rendement | AE19: 0.03
A20: 0.126 | B20: 277.13 | C20: 320.16 | D20: 363.8 | E20: 408.13 | F20: 453.24 | G20: 499.2 | H20: 546.08 | I20: 593.98 | J20: 642.97 | K20: 693.13 | L20: 744.54 | M20: 797.28 | N20: 851.43 | O20: 907.06 | P20: 964.27 | Q20: 1023.13 | R20: 1083.71 | S20: 1146.11 | T20: 1210.39 | U20: 1276.64 | V20: 1344.94 | W20: 1415.37 | X20: 1488 | Y20: 1562.93 | AA20: masse molaire air (kg/mol) | AB20: 0.0289644 | AD20: constante g (m/s²) | AE20: 9.806
A21: 0.133 | B21: 291.47 | C21: 336.65 | D21: 382.44 | E21: 428.93 | F21: 476.19 | G21: 524.29 | H21: 573.33 | I21: 623.38 | J21: 674.52 | K21: 726.83 | L21: 780.39 | M21: 835.28 | N21: 891.58 | O21: 949.37 | P21: 1008.73 | Q21: 1069.74 | R21: 1132.48 | S21: 1197.02 | T21: 1263.45 | U21: 1331.86 | V21: 1402.31 | W21: 1474.89 | X21: 1549.67 | Y21: 1626.75 | AA21: rho air | AB21: =AB17*EXP((-AE20*AB20*AB11)/(AB18*AC19)) -> 1.21080808
A22: 0.14 | B22: =_xludf.power($AE$20,$A22,$AB$8,$AB$2,$AB$5,$AB$22,$AB$12,$AB$21,B$1,$AE$19,$AC$3,$AB$3,$AB$4,$AB$7,$AE$15) -> 305.77 | C22: 353.1 | D22: 401.04 | E22: 449.67 | F22: 499.07 | G22: 549.32 | H22: 600.51 | I22: 652.7 | J22: 705.98 | K22: 760.44 | L22: =_xludf.power($AE$20,$A22,$AB$8,$AB$2,$AB$5,$AB$22,$AB$12,$AB$21,L$1,$AE$19,$AC$3,$AB$3,$AB$4,$AB$7,$AE$15) -> 816.15 | M22: 873.18 | N22: 931.63 | O22: 991.56 | P22: 1053.07 | Q22: 1116.22 | R22: 1181.1 | S22: 1247.79 | T22: 1316.37 | U22: 1386.92 | V22: 1459.51 | W22: 1534.24 | X22: 1611.17 | Y22: 1690.39 | AA22: coeff résis roulement | AB22: 0.005
A23: 0.147 | B23: 320.03 | C23: 369.5 | D23: 419.57 | E23: 470.34 | F23: 521.88 | G23: 574.28 | H23: 627.6 | I23: 681.93 | J23: 737.36 | K23: 793.95 | L23: 851.8 | M23: 910.97 | N23: 971.55 | O23: 1033.63 | P23: 1097.27 | Q23: 1162.56 | R23: 1229.58 | S23: 1298.41 | T23: 1369.13 | U23: 1441.82 | V23: 1516.55 | W23: 1593.42 | X23: 1672.49 | Y23: 1753.84
A24: 0.154 | B24: 334.25 | C24: 385.85 | D24: 438.06 | E24: 490.96 | F24: 544.63 | G24: 599.15 | H24: 654.61 | I24: 711.08 | J24: 768.63 | K24: 827.36 | L24: 887.34 | M24: 948.64 | N24: 1011.36 | O24: 1075.57 | P24: 1141.34 | Q24: 1208.77 | R24: 1277.92 | S24: 1348.88 | T24: 1421.73 | U24: 1496.55 | V24: 1573.42 | W24: 1652.41 | X24: 1733.62 | Y24: 1817.11
A25: 0.161 | B25: 348.42 | C25: 402.14 | D25: 456.48 | E25: 511.51 | F25: 567.3 | G25: 623.95 | H25: 681.53 | I25: 740.13 | J25: 799.81 | K25: 860.66 | L25: 922.76 | M25: 986.2 | N25: 1051.04 | O25: 1117.37 | P25: 1185.27 | Q25: 1254.82 | R25: 1326.1 | S25: 1399.19 | T25: 1474.17 | U25: 1551.11 | V25: 1630.1 | W25: 1711.22 | X25: 1794.55 | Y25: 1880.17
A26: 0.168 | B26: 362.54 | C26: 418.38 | D26: 474.84 | E26: 531.98 | F26: 589.9 | G26: 648.67 | H26: 708.37 | I26: 769.08 | J26: 830.88 | K26: 893.85 | L26: 958.07 | M26: 1023.62 | N26: 1090.59 | O26: 1159.04 | P26: 1229.06 | Q26: 1300.72 | R26: 1374.12 | S26: 1449.33 | T26: 1526.42 | U26: 1605.49 | V26: 1686.6 | W26: 1769.84 | X26: 1855.28 | Y26: 1943.02
A27: 0.175 | B27: 376.62 | C27: 434.57 | D27: 493.14 | E27: 552.39 | F27: 612.42 | G27: 673.3 | H27: 735.11 | I27: 797.93 | J27: 861.85 | K27: 926.93 | L27: 993.26 | M27: 1060.92 | N27: 1130 | O27: 1200.56 | P27: 1272.69 | Q27: 1346.47 | R27: 1421.98 | S27: 1499.29 | T27: 1578.5 | U27: 1659.68 | V27: 1742.9 | W27: 1828.25 | X27: 1915.81 | Y27: 2005.65
A28: 0.182 | B28: 390.64 | C28: 450.7 | D28: 511.37 | E28: 572.73 | F28: 634.86 | G28: 697.84 | H28: 761.76 | I28: 826.68 | J28: 892.7 | K28: 959.89 | L28: 1028.32 | M28: 1098.09 | N28: 1169.26 | O28: 1241.93 | P28: 1316.16 | Q28: 1392.05 | R28: 1469.66 | S28: 1549.08 | T28: 1630.39 | U28: 1713.67 | V28: 1799 | W28: 1886.45 | X28: 1976.11 | Y28: 2068.06
A29: 0.189 | B29: 404.61 | C29: 466.77 | D29: 529.53 | E29: 592.99 | F29: 657.22 | G29: 722.3 | H29: 788.31 | I29: 855.33 | J29: 923.44 | K29: 992.72 | L29: 1063.25 | M29: 1135.11 | N29: 1208.39 | O29: 1283.15 | P29: 1359.48 | Q29: 1437.46 | R29: 1517.17 | S29: 1598.68 | T29: 1682.09 | U29: 1767.46 | V29: 1854.88 | W29: 1944.43 | X29: 2036.19 | Y29: 2130.24
A30: 0.196 | B30: 418.53 | C30: 482.77 | D30: 547.63 | E30: 613.17 | F30: 679.49 | G30: 746.65 | H30: 814.75 | I30: 883.86 | J30: 954.06 | K30: 1025.43 | L30: 1098.05 | M30: 1172 | N30: 1247.36 | O30: 1324.21 | P30: 1402.62 | Q30: 1482.69 | R30: 1564.49 | S30: 1648.09 | T30: 1733.59 | U30: 1821.05 | V30: 1910.56 | W30: 2002.19 | X30: 2096.04 | Y30: 2192.17
A31: 0.203 | B31: 432.39 | C31: 498.71 | D31: 565.65 | E31: 633.27 | F31: 701.67 | G31: 770.91 | H31: 841.09 | I31: 912.28 | J31: 984.56 | K31: 1058.01 | L31: 1132.7 | M31: 1208.73 | N31: 1286.17 | O31: 1365.1 | P31: 1445.6 | Q31: 1527.75 | R31: 1611.62 | S31: 1697.3 | T31: 1784.88 | U31: 1874.42 | V31: 1966.01 | W31: 2059.72 | X31: 2155.65 | Y31: 2253.86

Sheet vitesse en fonction du CdA
A1: CdA | B1: puissance | C1: vitesse | I1: Profil vélo | O1: Info
A2: 0.29 | B2: =(($M$38*COS(ATAN($G$3))*($J$19+$J$3+$J$8)*$M$35+$M$38*SIN(ATAN($G$3))*($J$19+$J$3+$J$8)+0.5*A2*$J$38*((C2/3.6)+$M$29)^2)*(C2/3.6))/(1-$M$36)-((($K$4-$J$4)*(C2/3.6)^3)/(45/3.6)^3)+$J$5-(($J$7)*(C2/3.6)^3)/((45/3.6)^3) -> 200.0000454 | C2: 36.21968978 | J2: Aeroad CF SLX | K2: Ultimate CF SLX | L2: Rose Six | O2: CdA exemple
A3: 0.295 | B3: =(($M$38*COS(ATAN($G$3))*($J$19+$J$3+$J$8)*$M$35+$M$38*SIN(ATAN($G$3))*($J$19+$J$3+$J$8)+0.5*A3*$J$38*((C3/3.6)+$M$29)^2)*(C3/3.6))/(1-$M$36)-((($K$4-$J$4)*(C3/3.6)^3)/(45/3.6)^3)+$J$5-(($J$7)*(C3/3.6)^3)/((45/3.6)^3) -> 200.0000453 | C3: 36.00350769 | F3: pente | G3: 0 | I3: poids vélo et matériel | J3: 7.85 | K3: 7 | L3: 7.4 | O3: Barres | P3: 0.408
A4: 0.3 | B4: 200.0000451 | C4: 35.79256924 | I4: aero à 45km/h(W) | J4: 204 | K4: 235 | L4: 225 | O4: Cocottes | P4: 0.324
A5: 0.305 | B5: 200.000045 | C5: 35.58665371 | I5: pénalité position(W) | J5: 0 | K5: 3 | L5: 0 | M5: manuel | O5: Ceintre | P5: 0.307
A6: 0.31 | B6: 200.0000449 | C6: 35.38555347 | I6: taille de cadre | J6: XS | K6: M | L6: M | M6: à titre indicatif | O6: Aerobars | P6: 0.2914
A7: 0.315 | B7: 200.0000448 | C7: 35.18907301 | I7: gain taille cadre aero 45km/h (W) | J7: 10 | K7: 0 | L7: 0 | M7: 5W/taille cadre
A8: 0.32 | B8: 200.0000446 | C8: 34.997028 | I8: poids matériel (kg) | J8: 2 | K8: 2 | L8: 2
A9: 0.325 | B9: 200.0000445 | C9: 34.8092445 | I9: cassette max (T) | J9: 30 | K9: 28 | L9: 28
A10: 0.33 | B10: 200.0000444 | C10: 34.62555821 | I10: cassette min (T) | J10: 11 | K10: 11 | L10: 11
A11: 0.335 | B11: 200.0000443 | C11: 34.44581375 | I11: plateau min (T) | J11: 36 | K11: 34 | L11: 34
A12: 0.34 | B12: 200.0000442 | C12: 34.26986408 | I12: plateau max (T) | J12: 52 | K12: 50 | L12: 50
A13: 0.345 | B13: 200.000044 | C13: 34.09756989 | I13: longueur manivelle (mm) | J13: 170 | K13: 172.5 | L13: 172.5
A14: 0.35 | B14: 200.0000439 | C14: 33.92879912 | I14: vitesse limite basse cadence (km/h) | J14: =(J11/J9)*PI()*0.7*(J23/60)*3.6 -> 12.66690158 | K14: =(K11/K9)*PI()*0.7*(J23/60)*3.6 -> 12.81769803 | L14: =(L11/L9)*PI()*0.7*(M23/60)*3.6 -> 12.81769803
A15: 0.355 | B15: 200.0000438 | C15: 33.76342644 | I15: vitesse limite haute cadence (km/h) | J15: =(J12/J10)*PI()*0.7*(J23/60)*3.6 -> 49.89991531 | K15: =(K12/K10)*PI()*0.7*(J23/60)*3.6 -> 47.9806878 | L15: =(L12/L10)*PI()*0.7*(M23/60)*3.6 -> 47.9806878
A16: 0.36 | B16: 200.0000437 | C16: 33.60133282
A17: 0.365 | B17: 200.0000436 | C17: 33.44240512
A18: 0.37 | B18: 200.0000435 | C18: 33.28653573 | I18: Profil cycliste
A19: 0.375 | B19: 200.0000434 | C19: 33.13362221 | I19: masse cycliste 1 (kg) - CANYON | J19: 63 | L19: masse cycliste 2 (kg) - ROSE | M19: 74
A20: 0.38 | B20: 200.0000433 | C20: 32.98356698 | I20: puissance (W) | J20: 200 | L20: puissance (W) | M20: 215
A21: 0.385 | B21: 200.0000432 | C21: 32.83627701 | I21: CdA (coeff trainée x aire frontale) | J21: 0.325 | L21: CdA (coeff trainée x aire frontale) | M21: 0.33
A22: 0.39 | B22: 200.0000431 | C22: 32.69166355 | I22: puissance (W/kg) | J22: =J20/J19 -> 3.174603175 | L22: puissance (W/kg) | M22: =M20/M19 -> 2.905405405
A23: 0.395 | B23: 200.000043 | C23: 32.54964189 | I23: cadence (tr/min) | J23: 80 | L23: cadence (tr/min) | M23: 80
A24: 0.4 | B24: 200.0000428 | C24: 32.41013112 | I24: force sur pédale (N) | J24: =(J20*60)/(J13*10^-3*J23*2*PI()) -> 140.4308321 | L24: force sur pédale (N) | M24: =(M20*60)/(L13*10^-3*M23*2*PI()) -> 148.7752729
A25: 0.405 | B25: 200.0000427 | C25: 32.2730539
A26: 0.41 | B26: 200.0000426 | C26: 32.13833626
I27: Paramètres environmentaux
I28: altitude (m) - influence densité air | J28: 100 | L28: vitesse vent (km/h) | M28: 0 | N28: positive vent de face ; négatif vent de dos
I29: température (C°) | J29: 20 | L29: vitesse vent (m/s) | M29: =M28/3.6 -> 0
I30: température (K°) | J30: =J29+273.15 -> 293.15
I31: distance vert. à gravir (m) | J31: 100
I34: Constantes
I35: densité air niv. mer(kg/m^3) | J35: 1.225 | L35: coeff résis roulement | M35: 0.005
I36: R constante gaz parfait | J36: 8.31445 | L36: perte rendement | M36: 0.03
I37: masse molaire air (kg/mol) | J37: 0.0289644
I38: rho air (kg/m^3) | J38: =J35*EXP((-M38*J37*J28)/(J36*J30)) -> 1.21080808 | L38: constante g (m/s²) | M38: 9.806
